bitfinex-derivatives/quotes_BTCF0:USTF0_20250422
["timestamp","ask_amount","ask_price","bid_price","bid_amount"]
[1745335507835,0.501,91264.0,91261.0,0.192]
[1745335508032,0.1885,91263.0,91262.0,0.003]
[1745335508338,0.1885,91263.0,91262.0,0.1125066]
[1745335509034,0.501,91264.0,91262.0,0.1125066]
[1745335509035,0.501,91264.0,91263.0,0.1095054]
[1745335509529,0.501,91264.0,91262.0,0.003]
[1745335509735,0.001,91264.0,91261.0,0.1095068]
[1745335509935,0.001,91264.0,91263.0,0.002]
[1745335510636,0.001,91264.0,91262.0,0.004]
[1745335510837,0.1921,91263.0,91262.0,0.004]
[1745335511240,0.38072,91263.0,91262.0,0.004]
[1745335511540,0.19302,91263.0,91262.0,0.1095066]
[1745335511726,0.1921,91263.0,91262.0,0.1095066]
[1745335511927,0.501,91264.0,91263.0,0.1095054]
[1745335512129,0.3608,91298.0,91288.0,0.1094754]
[1745335512329,0.1877,91297.0,91288.0,0.1094754]
[1745335512528,0.1921,91297.0,91288.0,0.1094754]
[1745335513034,0.1921,91297.0,91285.0,0.0547395]
[1745335513234,0.1921,91297.0,91284.0,0.6118397]
[1745335513436,0.1861,91296.0,91286.0,0.0547388]
[1745335513631,0.008,91289.0,91284.0,0.1963]
[1745335513831,0.01,91289.0,91288.0,0.001]
[1745335514136,0.007,91289.0,91288.0,0.14956168]
[1745335514441,0.01,91289.0,91288.0,0.14956168]
[1745335514639,0.01,91289.0,91288.0,0.14856168]
[1745335515730,0.01,91289.0,91288.0,0.25810568]
[1745335516136,0.009,91289.0,91288.0,0.14863028]
[1745335516532,0.009,91289.0,91288.0,0.25810568]
[1745335517141,0.00016438,91298.0,91297.0,0.1094646]
[1745335517438,0.3608,91324.0,91297.0,0.480332]
[1745335517635,0.00092,91312.0,91306.0,0.3608]
[1745335517836,0.18162,91318.0,91312.0,0.109446]
[1745335518037,0.3608,91320.0,91306.0,0.3608]
[1745335518239,0.3608,91327.0,91314.0,0.047722]
[1745335518438,0.36096429,91322.0,91315.0,0.16116]
[1745335518633,0.00016429,91322.0,91318.0,0.1094395]
[1745335518942,0.00016429,91322.0,91318.0,0.4702395]
[1745335519142,0.00016429,91322.0,91318.0,0.6592395]
[1745335519542,0.00016429,91322.0,91318.0,0.6542395]
[1745335520441,0.00016429,91322.0,91321.0,0.1094359]
[1745335520745,0.00016429,91322.0,91321.0,0.1064359]
[1745335520940,0.00016429,91322.0,91318.0,0.5568]
[1745335521141,0.36172,91319.0,91295.0,0.16116]
[1745335521445,0.25824877,91322.0,91297.0,0.00492897]
[1745335521446,0.36155571,91304.0,91297.0,0.00492897]
[1745335521744,0.3608,91304.0,91297.0,0.00492897]
[1745335522045,0.00075571,91298.0,91297.0,0.00492897]
[1745335522247,0.00075571,91298.0,91295.0,0.16116]
[1745335522543,0.36155571,91296.0,91295.0,0.16116]
[1745335522742,0.00075571,91299.0,91295.0,0.16116]
[1745335522946,0.1994,91300.0,91295.0,0.16116]
[1745335523248,0.5,91301.0,91300.0,0.1094611]
[1745335523637,0.0080459,91304.0,91303.0,0.1084575]
[1745335523836,0.1972,91317.0,91310.0,0.0547244]
[1745335524035,0.005,91319.0,91313.0,0.1094449]
[1745335524349,0.005,91319.0,91314.0,0.3724]
[1745335524543,0.1994,91318.0,91314.0,0.3714]
[1745335525439,0.36155571,91315.0,91314.0,0.3714]
[1745335525642,0.36991168,91315.0,91305.0,0.1864]
[1745335525840,0.00075571,91314.0,91305.0,0.1864]
[1745335526044,0.00075571,91314.0,91313.0,0.003]
[1745335526246,0.1964,91314.0,91313.0,0.003]
[1745335526545,0.19715571,91314.0,91313.0,0.003]
[1745335526746,0.55795571,91314.0,91305.0,0.003]
[1745335527048,0.3608,91306.0,91305.0,0.003]
[1745335527439,1.0592,91314.0,91305.0,0.003]
[1745335527641,0.19715571,91313.0,91304.0,0.3608]
[1745335527836,0.19715571,91313.0,91305.0,0.1961]
[1745335528037,0.3608,91306.0,91305.0,0.1961]
[1745335528245,0.00075571,91312.0,91295.0,0.16116]
[1745335528545,0.1879,91305.0,91295.0,0.16116]
[1745335528949,0.18225571,91304.0,91295.0,0.16116]
[1745335529151,0.3608,91297.0,91295.0,0.16116]
[1745335529448,0.18865571,91303.0,91296.0,0.1988]
[1745335529645,0.18865571,91303.0,91295.0,0.16116]
[1745335529948,0.3608,91297.0,91295.0,0.16116]
[1745335530154,0.3706,91296.0,91295.0,0.16116]
[1745335530357,0.3706,91296.0,91295.0,0.272627]
[1745335530647,0.3706,91296.0,91295.0,0.16316]
[1745335530850,0.37135571,91296.0,91295.0,0.16316]
[1745335532048,0.87135571,91296.0,91295.0,0.16316]
[1745335532243,0.87235571,91296.0,91295.0,0.17116]
[1745335532649,1.12235571,91296.0,91288.0,0.03925057]
[1745335532850,0.36155571,91289.0,91276.0,0.16112]
[1745335533154,0.3608,91277.0,91263.0,0.04866957]
[1745335533353,0.3608,91264.0,91248.0,0.16288934]
[1745335533549,0.3608,91252.0,91248.0,0.16288934]
[1745335533852,0.3872,91263.0,91248.0,0.16288934]
[1745335533853,0.1983,91251.0,91248.0,0.04031072]
[1745335534044,0.1983,91251.0,91244.0,0.16112]
[1745335534245,0.1889,91250.0,91244.0,0.16112]
[1745335534650,0.1953,91249.0,91248.0,0.001]
[1745335534956,0.5561,91249.0,91248.0,0.001]
[1745335535159,0.5,91247.0,91237.0,0.00657626]
[1745335535355,0.3608,91238.0,91237.0,0.00657626]
[1745335535849,0.470404,91238.0,91237.0,0.00657626]
[1745335536155,0.3608,91238.0,91237.0,0.00657626]
[1745335536351,0.3608,91238.0,91237.0,0.01057626]
[1745335537052,0.8608,91238.0,91237.0,0.19857626]
[1745335537368,0.971404,91238.0,91234.0,0.04717197]
[1745335537549,0.3774,91237.0,91228.0,0.00016438]
[1745335537858,0.3608,91230.0,91228.0,0.00016438]
[1745335538054,0.1833,91229.0,91228.0,0.00016438]
[1745335538352,0.3774,91229.0,91228.0,0.04841125]
[1745335538744,0.8774,91229.0,91228.0,0.04841125]
[1745335538947,0.6833,91229.0,91228.0,0.04841125]
[1745335539151,0.3608,91240.0,91228.0,0.35002725]
[1745335539361,0.002,91238.0,91229.0,0.1882]
[1745335539552,0.002,91238.0,91229.0,0.1872]
[1745335540043,0.3608,91235.0,91229.0,0.1872]
[1745335540249,0.1833,91237.0,91229.0,0.1872]
[1745335541163,0.19,91236.0,91229.0,0.3792]
[1745335541352,0.3608,91234.0,91229.0,0.192]
[1745335541654,0.3783,91233.0,91229.0,0.185]
[1745335541953,0.5,91232.0,91229.0,0.185]
[1745335542357,0.3783,91231.0,91229.0,0.185]
[1745335542556,0.1883,91231.0,91230.0,0.1869]
[1745335542860,0.1883,91231.0,91230.0,0.3807]
[1745335543053,0.1883,91231.0,91229.0,0.186]
[1745335543355,0.19,91230.0,91229.0,0.001]
[1745335543548,0.19,91230.0,91228.0,0.04841125]
[1745335543855,0.1841,91229.0,91228.0,0.04841125]
[1745335544848,0.6841,91229.0,91215.0,0.192]
[1745335545049,0.1843,91228.0,91215.0,0.192]
[1745335545356,0.1843,91228.0,91207.0,0.19983383]
[1745335545551,0.1841,91227.0,91209.0,0.1991]
[1745335545955,0.1843,91226.0,91224.0,0.06042225]
[1745335546454,0.1841,91225.0,91224.0,0.06042225]
[1745335547160,0.3825,91225.0,91224.0,0.25242225]
[1745335548155,0.8825,91225.0,91224.0,0.06042225]
[1745335549257,0.8825,91225.0,91224.0,0.05342225]
[1745335549561,0.8865,91225.0,91224.0,0.05342225]
[1745335549764,0.99612001,91225.0,91217.0,0.3608]
[1745335549957,0.8865,91225.0,91217.0,0.3608]
[1745335551162,0.6881,91225.0,91217.0,0.40961561]
[1745335551363,0.6881,91225.0,91218.0,0.1974]
[1745335551561,0.1832,91224.0,91218.0,0.1974]
[1745335551956,0.183,91223.0,91217.0,0.40961561]
[1745335552165,0.183,91223.0,91217.0,0.60161561]
[1745335552461,0.1832,91222.0,91217.0,0.60161561]
[1745335552861,0.5,91220.0,91217.0,0.24081561]
[1745335553061,0.3707,91219.0,91217.0,0.24081561]
[1745335553251,0.3707,91219.0,91217.0,0.04881561]
[1745335553455,0.3707,91219.0,91216.0,0.00016438]
[1745335554350,0.5,91218.0,91216.0,0.00016438]
[1745335554753,0.3707,91217.0,91216.0,0.04909491]
[1745335555357,0.480328,91217.0,91216.0,0.00016438]
[1745335555551,0.480328,91217.0,91185.0,0.3608]
[1745335555757,0.3608,91208.0,91200.0,0.2805]
[1745335556361,0.3608,91208.0,91200.0,0.1]
[1745335556652,0.3608,91208.0,91207.0,0.05406473]
[1745335556860,0.3608,91210.0,91207.0,0.00593383]
[1745335557159,0.1908,91209.0,91207.0,0.17943383]
[1745335557355,0.5,91208.0,91207.0,0.22769401]
[1745335557554,0.5,91208.0,91207.0,0.04826018]
[1745335557755,0.87556,91208.0,91204.0,0.192]
[1745335557955,0.87556,91208.0,91200.0,0.1]
[1745335558165,0.3608,91201.0,91200.0,0.1]
[1745335558356,0.3608,91201.0,91170.0,0.31310255]
[1745335558558,0.3756,91200.0,91170.0,0.31310255]
[1745335559069,0.3756,91200.0,91186.0,0.192]
[1745335559261,0.3608,91191.0,91170.0,0.1943]
[1745335559569,0.3608,91178.0,91170.0,0.1943]
[1745335559761,0.3608,91178.0,91163.0,0.1096361]
[1745335559965,0.3608,91178.0,91177.0,0.05401083]
[1745335560962,0.1994,91190.0,91181.0,0.0548072]
[1745335561163,0.3691965,91191.0,91181.0,0.0548072]
[1745335561164,0.3711965,91191.0,91182.0,0.1943]
[1745335561369,0.3711965,91191.0,91183.0,0.1913]
[1745335561553,0.3711965,91191.0,91183.0,0.2013]
[1745335561756,0.5,91187.0,91184.0,0.1883]
[1745335561957,0.5,91187.0,91186.0,0.1096089]
[1745335562157,0.5,91187.0,91186.0,0.192]
[1745335562366,0.5,91187.0,91186.0,0.3803]
[1745335562662,0.5,91187.0,91186.0,0.3833]
[1745335563253,0.5,91187.0,91186.0,0.3793]
[1745335563454,0.502,91187.0,91186.0,0.3793]
[1745335563659,0.502,91187.0,91186.0,0.191]
[1745335564155,0.502,91187.0,91178.0,0.3795]
[1745335564362,0.3608,91179.0,91178.0,0.3795]
[1745335564665,0.3608,91179.0,91177.0,0.04701083]
[1745335564869,0.3772,91178.0,91171.0,0.192]
[1745335565163,0.3772,91178.0,91160.0,0.21624988]
[1745335565164,0.3608,91176.0,91160.0,0.21624988]
[1745335565360,0.3608,91166.0,91165.0,0.00024625]
[1745335566162,0.3608,91166.0,91165.0,0.2402152]
[1745335566356,0.3608,91166.0,91165.0,0.30188035]
[1745335566562,0.50016449,91175.0,91169.0,0.0548142]
[1745335566760,0.50016449,91175.0,91170.0,0.564]
[1745335566960,0.00012449,91175.0,91170.0,0.564]
[1745335567165,0.00012449,91175.0,91170.0,0.756]
[1745335567464,0.27012449,91175.0,91170.0,0.756]
[1745335567865,0.5,91173.0,91170.0,0.756]
[1745335568061,0.78,91173.0,91170.0,0.756]
[1745335569663,0.78,91173.0,91172.0,0.1096257]
[1745335570169,0.78,91173.0,91172.0,1.04392549]
[1745335570465,0.3608,91179.0,91174.0,0.0548113]
[1745335570660,0.25,91179.0,91175.0,0.2485107]
[1745335570960,0.25,91179.0,91178.0,0.1096185]
[1745335571157,0.3608,91190.0,91188.0,0.1096054]
[1745335571359,0.14,91190.0,91189.0,0.3876]
[1745335571565,0.14,91190.0,91189.0,0.4972053]
[1745335571759,0.14,91190.0,91189.0,0.6068653]
[1745335571968,0.14,91190.0,91189.0,0.6058653]
[1745335572268,0.14,91190.0,91189.0,0.68826]
[1745335572460,0.14,91190.0,91189.0,0.68126]
[1745335572866,0.142,91190.0,91189.0,0.68126]
[1745335573072,0.142,91190.0,91189.0,0.5716]
[1745335573868,0.143,91190.0,91189.0,0.6822053]
[1745335574170,0.0032625,91190.0,91189.0,0.5726]
[1745335574369,0.0022625,91190.0,91189.0,0.5726]
[1745335574670,0.0032625,91190.0,91189.0,0.5726]
[1745335575073,0.1910625,91190.0,91189.0,0.5726]
[1745335575270,0.1910625,91190.0,91189.0,0.3796]
[1745335575575,0.30072251,91190.0,91174.0,0.21624988]
[1745335575764,0.3608,91175.0,91174.0,0.18994056]
[1745335575966,0.6608,91175.0,91174.0,0.18994056]
[1745335576264,0.6608,91175.0,91174.0,0.38194056]
[1745335576464,0.8486,91175.0,91174.0,0.38194056]
[1745335576669,1.0344,91175.0,91174.0,0.38194056]
[1745335576965,1.0344,91175.0,91174.0,0.38394056]
[1745335577164,1.0344,91175.0,91174.0,0.19194056]
[1745335577665,1.5354,91175.0,91174.0,0.19294056]
[1745335578761,1.5354,91175.0,91174.0,0.003]
[1745335579374,0.801,91175.0,91174.0,0.003]
[1745335579774,1.1941,91175.0,91174.0,0.003]
[1745335580168,1.1941,91175.0,91165.0,0.04357817]
[1745335580365,0.3608,91166.0,91164.0,0.1979]
[1745335580669,0.6208,91166.0,91165.0,0.1935]
[1745335581172,0.6208,91166.0,91165.0,0.3855]
[1745335581376,1.1208,91166.0,91165.0,0.3855]
[1745335581571,1.1228,91166.0,91165.0,0.192]
[1745335581875,1.1228,91166.0,91165.0,0.23603273]
[1745335582269,1.1228,91166.0,91165.0,0.05499542]
[1745335582576,1.1228,91166.0,91164.0,0.004]
[1745335582779,0.3909,91165.0,91164.0,0.004]
[1745335582973,0.6709,91165.0,91164.0,0.004]
[1745335583477,0.6709,91165.0,91164.0,0.05935258]
[1745335583682,0.6709,91165.0,91164.0,0.05835258]
[1745335584177,1.1709,91165.0,91164.0,0.05835258]
[1745335584585,1.1729,91165.0,91164.0,0.05835258]
[1745335585576,1.1729,91165.0,91164.0,0.05935258]
[1745335585775,1.1729,91165.0,91164.0,0.05113041]
[1745335585968,1.1729,91165.0,91164.0,0.004]
[1745335586169,1.17286,91165.0,91163.0,4.179e-05]
[1745335586368,1.17286,91165.0,91156.0,0.3751]
[1745335586770,1.17286,91165.0,91134.0,0.38261579]
[1745335586771,0.3608,91158.0,91134.0,0.38261579]
[1745335586976,0.31310255,91150.0,91148.0,0.194]
[1745335587179,0.5539,91149.0,91148.0,0.24795534]
[1745335587380,0.8339,91149.0,91148.0,0.24795534]
[1745335587579,0.8339,91149.0,91139.0,0.00012449]
[1745335587785,0.3608,91140.0,91139.0,0.00012449]
[1745335588077,0.26,91140.0,91139.0,0.3016654]
[1745335588280,0.59858925,91140.0,91139.0,0.192]
[1745335588470,0.13778926,91140.0,91139.0,0.46633251]
[1745335588670,0.04615625,91140.0,91139.0,0.72633251]
[1745335588980,0.03878926,91140.0,91139.0,0.36566711]
[1745335589179,0.03878926,91140.0,91139.0,0.25594711]
[1745335590274,0.59228926,91140.0,91139.0,0.25594711]
[1745335590773,1.20400926,91140.0,91117.0,0.00493871]
[1745335590973,0.7216,91124.0,91117.0,0.00493871]
[1745335591179,0.9716,91124.0,91117.0,0.00493871]
[1745335591376,0.9716,91124.0,91123.0,0.08979608]
[1745335592076,0.9716,91124.0,91123.0,0.28579608]
[1745335592275,1.4716,91124.0,91123.0,0.28579608]
[1745335592476,0.75,91124.0,91123.0,0.64553607]
[1745335592682,0.08,91124.0,91123.0,0.39553607]
[1745335592878,0.08,91124.0,91123.0,0.75633607]
[1745335593081,0.08,91124.0,91123.0,0.86602077]
[1745335593680,0.08,91124.0,91123.0,0.39553607]
[1745335594090,0.082,91124.0,91123.0,0.39553607]
[1745335594279,0.082,91124.0,91123.0,0.86602077]
[1745335594280,0.03546178,91124.0,91123.0,0.86602077]
[1745335594580,0.03546178,91124.0,91123.0,0.76633607]
[1745335595283,0.03546178,91124.0,91123.0,0.75633607]
[1745335595484,0.03546178,91124.0,91123.0,0.28579608]
[1745335595680,0.03546178,91124.0,91123.0,0.27879608]
[1745335595983,0.53546178,91124.0,91123.0,0.27879608]
[1745335596281,0.53546178,91124.0,91123.0,0.2245]
[1745335596484,0.53546178,91124.0,91123.0,0.27981009]
[1745335596781,0.53546178,91124.0,91123.0,0.75035008]
[1745335596983,0.46915086,91124.0,91123.0,0.75035008]
[1745335597282,0.72915086,91124.0,91123.0,0.76035008]
[1745335597784,0.26,91124.0,91123.0,0.76035008]
[1745335598082,0.07,91124.0,91123.0,1.01035008]
[1745335598474,0.07,91124.0,91123.0,1.03035008]
[1745335598875,0.07,91124.0,91123.0,0.77035008]
[1745335599183,0.07,91124.0,91123.0,0.64061009]
[1745335599587,0.07,91124.0,91123.0,0.192]
[1745335599588,0.6808,91124.0,91123.0,0.192]
[1745335599881,0.72054,91124.0,91100.0,0.1]
[1745335600181,0.3608,91110.0,91100.0,0.1]
[1745335600384,0.3731,91109.0,91108.0,0.20612729]
[1745335600574,0.6231,91109.0,91108.0,0.20612729]
[1745335600979,0.75,91109.0,91108.0,0.56692729]
[1745335601179,0.75,91109.0,91108.0,0.39812729]
[1745335601375,1.1108,91109.0,91108.0,0.39812729]
[1745335601577,1.1138,91109.0,91108.0,0.40112729]
[1745335602285,0.753,91109.0,91108.0,0.40112729]
[1745335603079,0.75296,91109.0,91108.0,0.40112729]
[1745335603285,0.25296,91109.0,91108.0,0.40112729]
[1745335603585,0.25296,91109.0,91108.0,0.39412729]
[1745335603976,0.25296,91109.0,91108.0,1.05778729]
[1745335604377,0.25296,91109.0,91108.0,0.94802729]
[1745335604578,0.25296,91109.0,91108.0,0.39412729]
[1745335605779,0.62896,91109.0,91108.0,0.39412729]
[1745335605979,1.12896,91109.0,91108.0,0.003]
[1745335606176,1.12896,91109.0,91108.0,0.192]
[1745335606684,1.12896,91109.0,91101.0,0.192]
[1745335607082,1.12896,91109.0,91101.0,0.384]
[1745335607285,1.12896,91109.0,91101.0,0.192]
[1745335607478,0.3608,91102.0,91101.0,0.24615949]
[1745335607782,0.6208,91102.0,91100.0,0.03916794]
[1745335607982,0.487268,91101.0,91100.0,0.03916794]
[1745335608282,0.757268,91101.0,91100.0,0.01283466]
[1745335608487,1.507268,91101.0,91100.0,0.01283466]
[1745335608679,1.507268,91101.0,91100.0,0.00186282]
[1745335609278,1.510268,91101.0,91074.0,0.74352]
[1745335609475,0.36076,91088.0,91074.0,0.74352]
[1745335609675,0.63076,91088.0,91074.0,0.74352]
[1745335610194,1.230544,91088.0,91000.0,0.1]
[1745335610496,1.230544,91088.0,91038.0,0.35256536]
[1745335610497,0.3608,91049.0,91038.0,0.35256536]
[1745335610676,0.26,91049.0,91048.0,0.3608]
[1745335610984,0.26,91049.0,91048.0,0.5528]
[1745335611181,0.26,91049.0,91048.0,0.9878]
[1745335611377,0.075,91049.0,91048.0,2.412632]
[1745335611576,0.07473816,91049.0,91048.0,0.192]
[1745335612085,0.09069816,91049.0,91048.0,0.192]
[1745335612884,0.59069816,91049.0,91048.0,0.192]
[1745335613386,0.59069816,91049.0,91048.0,0.5528]
[1745335613588,0.58069816,91049.0,91048.0,0.5528]
[1745335613791,0.58669816,91049.0,91048.0,0.772407]
[1745335614089,0.08669816,91049.0,91048.0,0.782407]
[1745335614283,0.08469816,91049.0,91048.0,0.672632]
[1745335614489,0.08569816,91049.0,91048.0,0.5528]
[1745335614688,0.08569816,91049.0,91048.0,0.5784]
[1745335615790,0.08569816,91049.0,91048.0,1.048007]
[1745335616089,0.08569816,91049.0,91048.0,1.088007]
[1745335616689,0.08569816,91049.0,91048.0,0.728232]
[1745335617193,0.25,91049.0,91048.0,1.1428944]
[1745335617386,0.67390255,91070.0,91048.0,0.978232]
[1745335617387,0.3608,91070.0,91048.0,0.978232]
[1745335617586,0.07016468,91068.0,91067.0,0.3608]
[1745335617782,0.07016468,91068.0,91067.0,0.51924]
[1745335617989,0.07016468,91068.0,91067.0,0.99880009]
[1745335618193,0.07016468,91068.0,91067.0,1.18580009]
[1745335618487,0.07016468,91068.0,91067.0,0.86604799]
[1745335619088,0.07016468,91068.0,91067.0,0.85904799]
[1745335619392,0.07016468,91068.0,91067.0,0.85804799]
[1745335619582,0.07016468,91068.0,91067.0,0.83804799]
[1745335620294,0.005,91079.0,91067.0,1.09304799]
[1745335620487,0.005,91079.0,91078.0,0.1097388]
[1745335620488,0.265,91079.0,91078.0,0.1097388]
[1745335620687,0.265,91079.0,91078.0,0.05]
[1745335620897,0.265,91079.0,91078.0,0.169796]
[1745335621091,0.265,91079.0,91078.0,0.737096]
[1745335621488,0.265,91079.0,91078.0,0.8468348]
[1745335621890,0.265,91079.0,91078.0,0.737096]
[1745335622294,0.265,91079.0,91078.0,0.895536]
[1745335622695,0.266,91079.0,91078.0,0.901536]
[1745335623293,0.265,91079.0,91078.0,1.27815179]
[1745335623497,0.266,91079.0,91078.0,1.17635579]
[1745335623693,0.266,91079.0,91078.0,1.16812584]
[1745335624395,0.266,91079.0,91078.0,1.38766064]
[1745335624589,0.266,91079.0,91078.0,1.27692184]
[1745335624795,0.00824007,91088.0,91078.0,1.63872184]
[1745335624997,0.11824007,91088.0,91079.0,0.38261579]
[1745335625196,0.11824007,91088.0,91079.0,0.48261579]
[1745335625494,0.3608,91086.0,91079.0,0.48261579]
[1745335625696,0.64076,91086.0,91079.0,0.48161579]
[1745335626086,0.28,91086.0,91079.0,0.78335299]
[1745335626498,0.28,91086.0,91079.0,0.78735299]
[1745335626792,0.3608,91082.0,91079.0,0.67061579]
[1745335626993,0.64076,91082.0,91080.0,0.3924]
[1745335627198,0.64076,91082.0,91080.0,0.6844]
[1745335627415,0.64076,91082.0,91080.0,0.7941362]
[1745335627997,0.28,91082.0,91081.0,0.2195272]
[1745335628188,0.28,91082.0,91081.0,0.13]
[1745335628387,0.28,91082.0,91081.0,0.5224]
[1745335628601,0.6408,91082.0,91081.0,0.5224]
[1745335628801,0.6418,91082.0,91081.0,0.5224]
[1745335629200,0.6418,91082.0,91081.0,0.7144]
[1745335629392,0.6418,91082.0,91081.0,0.8241352]
[1745335629695,0.6418,91082.0,91081.0,0.8301352]
[1745335629895,0.6418,91082.0,91081.0,0.8321352]
[1745335630106,0.6418,91082.0,91081.0,0.7224]
[1745335630402,0.64176,91082.0,91081.0,0.7224]
[1745335630794,0.64176,91082.0,91081.0,0.7204]
[1745335630989,0.64176,91082.0,91081.0,0.7224]
[1745335631596,0.64176,91082.0,91079.0,0.37461579]
[1745335631899,0.3801,91081.0,91079.0,0.3419441]
[1745335632098,0.8278,91081.0,91079.0,0.192]
[1745335632398,1.0778,91081.0,91079.0,0.192]
[1745335632700,0.109792,91080.0,91079.0,0.192]
[1745335632900,0.899792,91080.0,91070.0,0.15752]
[1745335633199,0.3608,91071.0,91057.0,0.00494196]
[1745335633400,0.3801,91070.0,91057.0,0.00494196]
[1745335633698,0.3608,91058.0,91057.0,0.00494196]
[1745335633900,0.6408,91058.0,91057.0,0.00494196]
[1745335634100,1.00062,91058.0,91057.0,0.192]
[1745335634399,1.50062,91058.0,91057.0,0.185]
[1745335634795,1.50058,91058.0,91057.0,0.185]
[1745335634992,1.50058,91058.0,91034.0,0.1831]
[1745335635197,0.3608,91035.0,91033.0,0.15752]
[1745335635493,0.3839,91034.0,91033.0,0.15752]
[1745335635698,0.6639,91034.0,91033.0,0.15752]
[1745335636202,0.67210251,91034.0,91033.0,0.35352]
[1745335636802,0.67210251,91034.0,91033.0,0.192]
[1745335637000,0.67306251,91034.0,91033.0,0.197]
[1745335637792,1.17306251,91034.0,91033.0,0.18601996]
[1745335638297,0.97846251,91034.0,91033.0,0.18601996]
[1745335638498,0.97746251,91034.0,91033.0,0.18101996]
[1745335638799,0.98346251,91034.0,91033.0,0.18101996]
[1745335639104,0.97946251,91034.0,91033.0,0.18101996]
[1745335639408,0.98246251,91034.0,91033.0,0.18101996]
[1745335639704,0.79320251,91034.0,91033.0,0.18101996]
[1745335640093,0.29820251,91034.0,91033.0,0.18101996]
[1745335640497,0.29820251,91034.0,91033.0,1.15016515]
[1745335640498,0.05093069,91034.0,91033.0,1.15016515]
[1745335640696,0.00016477,91043.0,91042.0,0.1097822]
[1745335640896,0.00016477,91043.0,91033.0,1.04037205]
[1745335640897,0.25016477,91043.0,91034.0,0.1865]
[1745335641104,0.25016477,91043.0,91042.0,0.3017822]
[1745335641299,0.25016477,91043.0,91042.0,0.192]
[1745335641695,0.25016477,91043.0,91042.0,0.191]
[1745335642101,0.25016477,91043.0,91042.0,0.184]
[1745335642291,0.25846742,91043.0,91042.0,0.184]
[1745335642493,0.25942742,91043.0,91042.0,0.184]
[1745335643193,0.25842742,91043.0,91042.0,0.184]
[1745335643505,0.25842742,91043.0,91042.0,0.186]
[1745335643802,0.25838742,91043.0,91042.0,0.186]
[1745335643992,0.25838742,91043.0,91042.0,0.185]
[1745335645295,0.25938742,91043.0,91042.0,0.17576551]
[1745335646099,0.25838742,91043.0,91042.0,0.17676551]
[1745335646302,0.25838742,91043.0,91042.0,0.28654771]
[1745335646498,1e-08,91043.0,91042.0,0.64638771]
[1745335646705,0.3608,91055.0,91054.0,0.1097678]
[1745335646905,0.3608,91066.0,91060.0,0.0548801]
[1745335647105,0.4808,91066.0,91061.0,0.5541]
[1745335647902,0.48894623,91066.0,91061.0,0.5531]
[1745335648204,0.48894623,91066.0,91061.0,0.7451]
[1745335648702,0.48894623,91066.0,91061.0,0.7441]
[1745335649003,0.49094623,91066.0,91061.0,0.7441]
[1745335650006,0.49094623,91066.0,91065.0,0.1097545]
[1745335650007,0.49194623,91066.0,91065.0,0.1097545]
[1745335650198,0.49194623,91066.0,91065.0,0.26737199]
[1745335650406,0.49094623,91066.0,91065.0,0.37712649]
[1745335650599,0.49094623,91066.0,91065.0,0.71907059]
[1745335651005,0.48894623,91066.0,91065.0,0.48931609]
[1745335651205,0.48894623,91066.0,91065.0,0.6812586]
[1745335652003,0.48894623,91066.0,91065.0,0.6842586]
[1745335652401,0.48994623,91066.0,91065.0,0.6902586]
[1745335653002,0.48994623,91066.0,91065.0,0.5805041]
[1745335653903,0.48994623,91066.0,91054.0,0.00016477]
[1745335654109,0.3608,91057.0,91056.0,0.1097654]
[1745335654308,0.6408,91057.0,91056.0,0.2976654]
[1745335654502,0.6408,91057.0,91055.0,0.1967]
[1745335654914,0.6408,91057.0,91056.0,0.2976654]
[1745335655101,0.6408,91057.0,91056.0,0.4896654]
[1745335655304,0.6408,91057.0,91056.0,0.3799]
[1745335655808,0.6418,91057.0,91056.0,0.3799]
[1745335656011,0.281,91057.0,91056.0,0.4896654]
[1745335656409,0.6418,91057.0,91056.0,0.3839]
[1745335657117,0.6418,91057.0,91056.0,0.196]
[1745335657308,0.6418,91057.0,91056.0,0.18776709]
[1745335657612,0.6418,91057.0,91056.0,0.18076709]
[1745335657804,0.6418,91057.0,91056.0,0.36506709]
[1745335658514,0.281,91057.0,91056.0,0.47383249]
[1745335659008,0.6408,91057.0,91056.0,0.46383249]
[1745335659212,0.281,91057.0,91056.0,0.46383249]
[1745335659408,0.36894623,91066.0,91056.0,0.80583119]
[1745335659713,0.45894623,91066.0,91065.0,0.1097545]
[1745335660207,0.45894623,91066.0,91065.0,0.3017545]
[1745335660410,0.45894623,91066.0,91065.0,0.192]
[1745335660713,0.45894623,91066.0,91065.0,0.5883]
[1745335661514,0.45994623,91066.0,91065.0,0.5893]
[1745335662207,0.45894623,91066.0,91065.0,0.5883]
[1745335662411,0.45994623,91066.0,91065.0,0.5903]
[1745335662611,0.82074623,91066.0,91065.0,0.5903]
[1745335662817,0.82074623,91066.0,91065.0,0.7000545]
[1745335663110,0.82074623,91066.0,91065.0,0.5903]
[1745335663503,0.82074623,91066.0,91065.0,0.5893]
[1745335663702,0.81974623,91066.0,91065.0,0.5893]
[1745335663904,0.82074623,91066.0,91065.0,0.5923]
[1745335664500,0.82074623,91066.0,91065.0,0.5893]
[1745335664501,0.81974623,91066.0,91065.0,0.5893]
[1745335664806,0.82074623,91066.0,91065.0,0.5923]
[1745335665510,0.82174623,91066.0,91065.0,0.5833]
[1745335666911,0.82474623,91066.0,91065.0,0.5823]
[1745335667307,0.82474623,91066.0,91065.0,0.5813]
[1745335667515,0.82374623,91066.0,91065.0,0.5853]
[1745335667711,0.82374623,91066.0,91065.0,0.57706775]
[1745335668108,0.82274623,91066.0,91065.0,0.57306775]
[1745335668313,0.82074623,91066.0,91065.0,0.68382225]
[1745335668512,0.82374623,91066.0,91065.0,0.68382225]
[1745335669117,0.82074623,91066.0,91065.0,0.57506775]
[1745335669306,0.45994623,91066.0,91065.0,0.57506775]
[1745335669506,0.3658,91079.0,91072.0,0.1097461]